bitfinex/quotes_ETHUSD_20250517
["timestamp","ask_amount","ask_price","bid_price","bid_amount"]
[1747496383723,0.98083454,2482.0,2481.9,2.73847617]
[1747496393443,0.98083454,2482.0,2481.9,6.76764736]
[1747496393648,0.98083454,2482.0,2481.9,12.71765148]
[1747496394145,0.98083454,2482.0,2481.9,8.68848029]
[1747496394512,5.0098434,2482.0,2481.9,8.68848029]
[1747496395346,5.0098434,2482.0,2481.9,0.38448029]
[1747496395646,0.98083454,2482.0,2481.9,8.13848029]
[1747496397123,0.98083454,2482.0,2481.9,9.56663208]
[1747496399471,0.98083454,2482.0,2481.9,8.68848029]
[1747496399767,0.98083454,2482.0,2481.9,9.33151788]
[1747496400768,0.98083454,2482.0,2481.9,9.32251788]
[1747496401266,0.98083454,2482.0,2481.9,1.02751788]
[1747496401469,0.98083454,2482.0,2481.9,8.77251788]
[1747496401765,5.0098434,2482.0,2481.9,8.77251788]
[1747496402183,0.98083454,2482.0,2481.9,8.77251788]
[1747496402383,0.97336768,2482.0,2481.9,8.77251788]
[1747496402980,0.97336768,2482.0,2481.9,10.60271015]
[1747496403651,0.97336768,2482.0,2481.9,14.63188134]
[1747496404282,0.97336768,2482.0,2481.9,10.60271015]
[1747496404949,0.97336768,2482.0,2481.9,2.85771015]
[1747496405150,0.97336768,2482.0,2481.9,9.32251788]
[1747496408848,1.78446768,2482.0,2481.9,9.32251788]
[1747496409690,0.97336768,2482.0,2481.9,9.32251788]
[1747496410066,0.97336768,2482.0,2481.9,8.77251788]
[1747496410067,5.00237654,2482.0,2481.9,8.77251788]
[1747496411294,0.97336768,2482.0,2481.9,8.77251788]
[1747496411584,0.97336768,2482.0,2481.9,8.12948029]
[1747496412287,5.00237654,2482.0,2481.9,8.12948029]
[1747496414607,0.97336768,2482.0,2481.9,8.12948029]
[1747496415212,5.00237654,2482.0,2481.9,8.12948029]
[1747496415578,0.97336768,2482.0,2481.9,8.12948029]
[1747496416613,5.00237654,2482.0,2481.9,0.38448029]
[1747496416819,5.00237654,2482.0,2481.9,8.12948029]
[1747496417014,5.82757654,2482.0,2481.9,0.38448029]
[1747496418221,4.02925814,2481.9,2481.5,17.88801759]
[1747496418419,4.02917119,2481.9,2481.6,3.04872311]
[1747496419216,4.02935613,2481.8,2481.6,3.04872311]
[1747496419619,4.02935613,2481.8,2481.7,0.38612297]
[1747496420116,4.84255613,2481.8,2481.7,0.38612297]
[1747496422519,23.86899761,2481.8,2481.7,0.38612297]
[1747496422917,29.66555613,2481.8,2481.7,0.38612297]
[1747496423115,4.02982067,2481.5,2481.4,0.00444389]
[1747496423614,4.81782067,2481.5,2481.4,0.00444389]
[1747496424891,12.56082067,2481.5,2481.4,0.00444389]
[1747496425088,4.81782067,2481.5,2481.4,0.00444389]
[1747496426219,12.81782067,2481.5,2481.4,0.00444389]
[1747496426707,23.84426215,2481.5,2481.4,0.00444389]
[1747496430591,21.89782067,2481.5,2481.4,0.00444389]
[1747496432007,29.64182067,2481.5,2481.4,0.00444389]
[1747496432535,31.58826215,2481.5,2481.4,0.00444389]
[1747496439757,23.84426215,2481.5,2481.4,0.00444389]
[1747496440067,31.58826215,2481.5,2481.4,0.00444389]
[1747496444638,40.16382851,2481.5,2481.4,0.00444389]
[1747496444832,40.16382851,2481.5,2480.1,25.63001759]
[1747496444833,4.0319329,2480.2,2480.1,25.63001759]
[1747496445032,4.0319329,2480.2,2480.1,8.22901759]
[1747496446085,7.744,2480.3,2480.2,0.7794]
[1747496446562,11.77577035,2480.3,2480.2,0.7794]
[1747496447077,4.03209548,2480.1,2480.0,0.7794]
[1747496447265,4.03242066,2479.9,2479.8,0.7794]
[1747496447583,0.29503499,2480.6,2479.8,7.746]
[1747496447728,7.81350587,2481.5,2480.9,0.7794]
[1747496447926,4.03030651,2481.3,2481.0,9.5303982]
[1747496448130,4.03030651,2481.3,2481.0,7.746]
[1747496448367,4.03031342,2481.2,2481.0,7.746]
[1747496448564,4.03022818,2481.3,2481.0,7.746]
[1747496449482,11.80505075,2481.4,2481.0,7.746]
[1747496450283,11.80505075,2481.4,2481.0,8.84370052]
[1747496450982,7.765,2481.4,2481.2,0.786]
[1747496451160,11.54756636,2481.5,2481.2,4.81624027]
[1747496451355,3.78356636,2481.5,2481.2,4.81624027]
[1747496451680,11.79819388,2481.9,2481.4,4.02990907]
[1747496451982,11.79822933,2481.9,2481.5,7.532]
[1747496452183,4.02965828,2481.6,2481.1,4.58038851]
[1747496452479,4.02951457,2481.7,2481.2,11.77619449]
[1747496452880,4.0294932,2481.8,2481.2,11.77621868]
[1747496453081,7.769,2481.9,2481.2,11.77620851]
[1747496453286,4.02960295,2481.7,2481.2,13.46665743]
[1747496453687,4.02991561,2481.5,2481.3,7.745]
[1747496453999,4.02975737,2481.6,2481.2,1.69044892]
[1747496454156,4.02975737,2481.6,2481.3,0.38487293]
[1747496454356,4.02985698,2481.5,2481.3,0.38487293]
[1747496454564,4.02975737,2481.6,2481.3,0.38487293]
[1747496454565,4.02973779,2481.6,2481.3,0.38487293]
[1747496454865,4.02986731,2481.5,2481.3,0.38487293]
[1747496455550,4.02982067,2481.5,2481.3,0.38487293]
[1747496455755,4.02991413,2481.5,2481.2,8.5247]
[1747496456296,4.02990031,2481.5,2481.2,8.5247]
[1747496456457,4.02949591,2481.7,2481.2,8.5247]
[1747496456657,4.02982122,2481.5,2481.2,8.5247]
[1747496456900,4.02986274,2481.5,2481.2,8.5247]
[1747496457186,4.0299832,2481.4,2481.2,0.7797]
[1747496457391,4.03014548,2481.3,2481.2,7.745]
[1747496457590,4.03014548,2481.3,2481.1,7.745]
[1747496457791,4.03021934,2481.3,2481.1,7.745]
[1747496457967,4.03021934,2481.3,2480.9,0.7797]
[1747496458149,4.03021934,2481.3,2481.0,7.745]
[1747496460199,11.78804463,2481.4,2481.0,7.745]
[1747496460200,12.02957351,2481.7,2481.2,4.0302183]
[1747496460356,9.86085611,2482.2,2481.7,4.02935914]
[1747496460692,9.86085611,2482.2,2481.8,4.81302809]
[1747496460693,9.07555611,2482.2,2481.8,4.81302809]
[1747496461191,9.07555611,2482.2,2481.8,6.47175876]
[1747496461610,7.771,2482.5,2481.8,2.44253872]
[1747496461771,11.79727455,2482.5,2482.2,0.7838]
[1747496461958,7.769,2482.5,2482.2,0.7838]
[1747496462307,11.79722102,2482.5,2482.2,0.7838]
[1747496462601,7.769,2482.5,2482.0,0.7838]
[1747496462771,4.02867565,2482.3,2482.2,7.772]
[1747496462967,4.02843619,2482.4,2482.2,7.772]
[1747496463397,4.02852193,2482.3,2482.2,7.772]
[1747496463601,4.02843548,2482.4,2482.2,7.772]
[1747496463916,4.02827544,2482.5,2482.2,7.772]
[1747496464078,9.07555611,2482.6,2482.3,0.7514]
[1747496464270,9.07555611,2482.6,2482.3,4.77978938]
[1747496464476,9.07555611,2483.1,2482.4,0.55]
[1747496464674,11.79048759,2483.0,2482.6,0.7514]
[1747496465104,4.02764413,2482.9,2482.6,0.7514]
[1747496465729,2.60556228,2483.6,2482.8,4.77899641]
[1747496466007,4.02743036,2483.0,2482.8,0.7514]
[1747496466525,4.02681081,2483.4,2482.8,4.77896155]
[1747496466815,4.02681081,2483.4,2482.8,4.77903085]
[1747496466979,4.02681081,2483.4,2482.9,4.02751532]
[1747496467179,4.02691412,2483.3,2482.9,1.65785462]
[1747496467408,4.02691412,2483.3,2482.8,0.7514]
[1747496467409,4.02722403,2483.1,2483.0,7.772]
[1747496469288,4.0275008,2483.0,2482.8,0.7514]
[1747496469522,4.02734556,2483.1,2482.9,7.77]
[1747496470019,4.02738622,2483.0,2482.9,7.77]
[1747496470581,4.02803512,2482.6,2482.4,7.77]
[1747496470782,4.0287667,2482.2,2482.0,0.7514]
[1747496470999,4.02877523,2482.2,2482.1,7.769]
[1747496471335,4.02877523,2482.2,2481.7,0.64303759]
[1747496471336,12.79830886,2482.0,2481.7,0.64303759]
[1747496471513,28.39430886,2482.0,2481.7,0.64303759]
[1747496472730,29.24108892,2482.0,2481.9,0.03599804]
[1747496473633,4.03094957,2480.9,2480.6,7.769]
[1747496473926,11.85894957,2480.9,2480.6,8.62104]
[1747496475134,7.828,2480.9,2480.6,8.62104]
[1747496475325,4.03127146,2480.7,2480.4,8.5224]
[1747496475692,7.828,2480.9,2480.4,8.5224]
[1747496476028,4.03122182,2480.7,2480.4,7.771]
[1747496476191,4.03043365,2481.2,2480.6,4.03124487]
[1747496476395,7.771,2481.8,2480.6,0.55]
[1747496476699,4.03002165,2481.4,2480.9,4.03070054]
[1747496476897,4.02990533,2481.5,2481.0,7.772]
[1747496477736,7.771,2481.8,2481.0,7.772]
[1747496477921,7.843,2481.4,2481.1,5.59138708]
[1747496478332,7.843,2481.4,2481.1,1.561]
[1747496478532,11.87301322,2481.4,2481.1,1.561]
[1747496478835,8.7563,2481.9,2481.1,8.5558]
[1747496479023,11.88538677,2481.8,2481.3,4.03014246]
[1747496479221,11.88534168,2481.8,2481.3,4.03006351]
[1747496479519,4.02950638,2481.7,2481.2,4.03018308]
[1747496479833,4.02950638,2481.7,2481.2,5.69182307]
[1747496480430,11.88541098,2481.8,2481.3,4.0301405]
[1747496480633,11.88541098,2481.8,2481.2,1.66163999]
[1747496480634,7.856,2481.8,2481.2,1.66163999]
[1747496480816,7.856,2481.8,2481.3,4.02998925]
[1747496481014,7.847,2481.8,2481.4,4.029977]
[1747496481838,13.10463838,2482.0,2481.2,1.66163999]
[1747496482002,16.91855611,2482.0,2481.4,0.55]
[1747496482198,7.849,2482.4,2481.8,4.02918694]
[1747496482425,4.02852822,2482.3,2481.9,7.772]
[1747496482647,4.02855382,2482.3,2481.9,7.772]
[1747496482828,9.07555611,2482.6,2482.3,4.02844551]
[1747496483019,9.07555611,2482.6,2482.1,4.0287715]
[1747496483335,9.07555611,2482.6,2482.3,4.02837156]
[1747496483531,9.07555611,2482.6,2482.4,7.772]
[1747496483732,4.02787889,2482.7,2482.4,7.772]
[1747496483903,4.02800701,2482.7,2482.4,7.772]
[1747496484103,11.87985923,2482.8,2482.4,7.772]
[1747496484304,7.852,2482.8,2482.4,7.772]
[1747496484536,4.02797289,2482.7,2482.4,7.772]
[1747496486040,4.02813338,2482.6,2482.4,7.772]
[1747496486337,7.852,2482.8,2482.2,7.771]
[1747496486540,7.852,2482.8,2481.5,7.771]
[1747496486541,8.0,2482.4,2481.5,7.771]
[1747496486706,4.02919976,2481.9,2481.5,7.771]
[1747496487541,20.96213216,2482.3,2481.5,7.771]
[1747496487740,4.02965828,2481.6,2481.5,7.771]
[1747496488938,9.89715611,2482.3,2481.5,7.771]
[1747496489144,4.02915361,2482.0,2481.5,11.80069608]
[1747496489436,4.02907283,2482.0,2481.5,11.80069608]
[1747496489642,7.853,2481.9,2481.5,11.80069608]
[1747496489943,11.88217819,2481.9,2481.5,7.771]
[1747496492019,7.853,2481.9,2481.5,11.80081359]
[1747496492217,7.84,2482.0,2481.8,4.02922872]
[1747496492418,9.07555611,2482.3,2481.9,4.029159]
[1747496492745,7.852,2482.7,2482.3,0.7917]
[1747496493143,11.87989839,2482.7,2482.3,0.7917]
[1747496493454,13.10328399,2482.8,2482.3,4.82015]
[1747496493743,4.02745466,2483.0,2482.5,4.02816513]
[1747496494044,7.858,2483.0,2482.6,4.02803512]
[1747496494213,20.96179406,2483.1,2482.6,4.02803512]
[1747496494410,20.96179406,2483.1,2482.7,7.841]
[1747496494611,9.07555611,2483.1,2482.7,7.841]
[1747496494826,20.96379579,2483.1,2482.7,7.841]
[1747496495668,16.93655611,2483.1,2482.7,11.86878673]
[1747496495978,16.93655611,2483.1,2482.7,11.86881353]
[1747496496253,20.96381397,2483.1,2482.7,7.841]
[1747496496551,16.93655611,2483.1,2482.7,7.841]
[1747496496854,20.96380257,2483.1,2482.7,7.841]
[1747496497020,16.93655611,2483.1,2482.7,7.841]
[1747496497548,20.96384936,2483.1,2482.7,7.841]
[1747496497750,16.93655611,2483.1,2482.3,0.7917]
[1747496497921,8.0,2482.8,2482.0,0.8143]
[1747496498114,4.02831031,2482.5,2482.0,4.8433049]
[1747496498314,9.07555611,2483.1,2482.0,2.4855616]
[1747496498512,4.02747808,2483.0,2482.4,0.8143]
[1747496498720,4.02771284,2482.8,2482.5,7.84]
[1747496500049,7.924,2482.7,2481.9,7.84]
[1747496500232,4.02849132,2482.4,2481.9,7.84]
[1747496500415,4.02853518,2482.3,2481.9,9.17268173]
[1747496500617,4.02893391,2482.1,2481.9,7.84]
[1747496500814,4.02824472,2482.5,2481.9,7.84]
[1747496501020,4.02860255,2482.3,2481.9,7.84]
[1747496501637,4.0284231,2482.4,2482.0,0.8143]
[1747496501838,4.02815612,2482.6,2482.1,0.55]
[1747496502039,4.02830116,2482.5,2482.1,0.55]
[1747496502239,4.02830116,2482.5,2482.1,1.87334228]
[1747496502440,4.02839079,2482.4,2482.1,1.87334228]
[1747496502640,4.02828794,2482.5,2482.1,1.87334228]
[1747496503924,4.02836936,2482.4,2482.1,1.87334228]
[1747496504543,4.02859447,2482.3,2482.1,1.87334228]
[1747496504781,4.02844312,2482.4,2482.1,1.87334228]
[1747496504938,4.02859495,2482.3,2482.1,1.87334228]
[1747496505556,4.02859495,2482.3,2482.0,0.8143]
[1747496505757,4.02859495,2482.3,2482.2,7.84]
[1747496505963,4.02845198,2482.4,2482.2,7.84]
[1747496506649,7.923,2482.8,2482.2,7.84]
[1747496506650,4.02852193,2482.3,2482.2,7.84]
[1747496507027,4.02884654,2482.1,2482.0,0.8143]
[1747496507227,0.7824,2482.7,2482.0,8.6543]
[1747496507460,4.02860786,2482.3,2482.0,8.6543]
[1747496508572,4.02841141,2482.4,2482.0,8.6543]
[1747496508780,4.02841141,2482.4,2482.0,13.95163563]
[1747496508979,4.02841141,2482.4,2482.1,0.38456434]
[1747496509286,4.02815644,2482.6,2482.2,0.7532]
[1747496509578,4.02820626,2482.5,2482.2,0.7532]
[1747496510075,7.895,2482.7,2482.2,0.7532]
[1747496510274,4.02852193,2482.3,2482.2,0.7532]
[1747496510972,4.02823667,2482.5,2482.2,0.7532]
[1747496511143,4.02852193,2482.3,2482.2,0.7532]
[1747496511578,4.02852193,2482.3,2482.2,8.97813357]
[1747496512588,4.02829399,2482.5,2482.2,8.97813357]
[1747496513166,4.02837153,2482.4,2482.2,8.97813357]
[1747496513366,4.02852193,2482.3,2482.2,8.97813357]
[1747496513550,4.02852193,2482.3,2482.2,8.5932]
[1747496514844,4.02845195,2482.4,2482.2,8.5932]
[1747496518483,4.02845195,2482.4,2482.3,0.38502574]
[1747496520658,4.02835965,2482.4,2482.3,0.38502574]
[1747496521759,4.02868423,2482.2,2482.1,7.84]
[1747496522066,4.02840304,2482.4,2482.1,7.84]
[1747496522250,4.02868423,2482.2,2482.1,7.84]
[1747496523165,4.02868423,2482.2,2482.1,8.22573076]
[1747496523389,4.02857082,2482.3,2482.1,8.22573076]
[1747496523588,4.02844706,2482.4,2482.1,8.22573076]
[1747496523792,4.02865141,2482.3,2482.1,8.22573076]
[1747496523999,4.02865141,2482.3,2482.1,0.38573076]
[1747496524000,4.02868423,2482.2,2482.1,0.38573076]
[1747496524180,12.65278423,2482.2,2482.1,0.38573076]
[1747496524381,12.65278423,2482.2,2481.7,0.64303759]
[1747496524382,4.02933354,2481.8,2481.7,0.64303759]
[1747496524695,4.80143354,2481.8,2481.7,0.64303759]
[1747496525412,12.80143354,2481.8,2481.7,0.64303759]
[1747496525959,4.02982067,2481.5,2481.4,7.854]
[1747496526195,11.88382067,2481.5,2481.4,7.854]
[1747496527274,11.88383916,2481.5,2481.0,7.854]
[1747496527459,4.03041781,2481.2,2481.0,7.854]
[1747496527659,4.03047035,2481.1,2481.0,7.854]
[1747496528186,4.03040038,2481.2,2481.0,7.854]
[1747496528373,4.03028235,2481.3,2481.0,7.854]
[1747496528570,0.7721,2481.8,2481.1,0.55]
[1747496528571,4.02973336,2481.6,2481.1,0.55]
[1747496528897,4.03006373,2481.4,2481.1,0.55]
[1747496530666,4.02988884,2481.5,2481.1,0.55]
[1747496530866,4.02986082,2481.5,2481.2,0.7593]
[1747496531062,4.02986082,2481.5,2481.2,2.20533012]
[1747496531766,4.03014548,2481.3,2481.2,2.20533012]
[1747496531966,4.03007251,2481.4,2481.2,0.7593]
[1747496532559,4.029909,2481.5,2481.2,0.7593]
[1747496533222,4.0297526,2481.6,2481.2,0.7593]
[1747496533699,4.0295095,2481.7,2481.3,0.55]
[1747496534202,4.02942788,2481.8,2481.3,4.58005241]
[1747496534403,4.02942788,2481.8,2481.4,0.93695723]
[1747496534585,4.02942788,2481.8,2481.5,7.856]
[1747496537982,4.02953261,2481.7,2481.5,7.856]
[1747496538186,4.02953118,2481.7,2481.2,0.7593]
[1747496538559,4.03013225,2481.4,2481.3,7.856]
[1747496539021,4.02998307,2481.4,2481.3,7.856]
[1747496539619,4.02998307,2481.4,2481.2,0.7593]
[1747496539932,4.03095775,2480.8,2480.7,0.48054577]
[1747496540220,4.03089279,2480.9,2480.7,0.48054577]
[1747496540377,4.03095775,2480.8,2480.7,0.48054577]
[1747496540576,4.03095775,2480.8,2480.7,8.33654577]
[1747496543606,4.03095775,2480.8,2480.7,7.856]
[1747496548021,0.8015,2481.2,2480.7,8.6416]
[1747496548211,4.03088757,2480.9,2480.7,8.6416]
[1747496548909,4.03072104,2481.0,2480.7,9.1916]
[1747496549087,4.03088448,2480.9,2480.7,9.1916]
[1747496550091,4.03095775,2480.8,2480.7,9.1916]
[1747496550387,4.03095775,2480.8,2480.7,8.406]
[1747496550731,4.03086426,2480.9,2480.7,8.406]
[1747496558549,4.03024729,2481.3,2480.8,5.38678486]
[1747496558724,20.89255885,2481.4,2480.9,4.07098204]
[1747496558938,13.10559462,2481.4,2481.0,4.58062964]
[1747496559116,13.10559462,2481.4,2481.2,0.8059]
[1747496559117,9.07555611,2481.4,2481.2,0.8059]
[1747496559444,13.10562972,2481.4,2481.3,7.813]
[1747496559630,9.07555611,2481.4,2481.3,7.813]
[1747496559846,13.10553918,2481.4,2481.3,7.813]
[1747496561539,9.07555611,2481.4,2481.3,7.813]
[1747496561743,13.10553918,2481.4,2481.3,7.813]
[1747496563531,4.03042934,2481.2,2481.0,1.3302]
[1747496563719,4.03042934,2481.2,2481.1,7.812]
[1747496566346,4.03022253,2481.3,2481.1,8.89935767]
[1747496569170,4.03030791,2481.2,2481.1,7.812]
[1747496569721,11.78830791,2481.2,2481.1,7.812]
[1747496571143,4.03079527,2480.9,2480.8,17.406]
[1747496571343,4.03079527,2480.9,2480.8,25.218]
[1747496572181,4.0307167,2481.0,2480.8,25.218]
[1747496572465,4.03070849,2481.0,2480.8,25.218]
[1747496573855,4.03070849,2481.0,2480.8,7.812]
[1747496578468,4.03055941,2481.1,2480.8,7.812]
[1747496579647,4.03068918,2481.0,2480.8,7.812]
[1747496580571,4.03079527,2480.9,2480.8,7.812]
[1747496580976,4.82779527,2480.9,2480.8,7.812]
[1747496581273,12.82795775,2480.8,2480.7,0.48054577]
[1747496581433,20.58595775,2480.8,2480.7,0.48054577]
[1747496582273,20.58595775,2480.8,2479.9,0.8195]
[1747496582274,4.03162188,2480.4,2480.0,4.58224872]
[1747496582448,4.03162188,2480.4,2480.0,2.37767758]
[1747496582650,4.03178651,2480.3,2480.0,2.37767758]
[1747496582865,4.03167088,2480.4,2480.0,2.37767758]
[1747496583251,9.07555611,2481.1,2480.1,0.8277]
[1747496583572,9.07555611,2481.1,2480.5,0.55]
[1747496583786,11.7883452,2481.2,2480.7,5.40875013]
[1747496583952,4.03054833,2481.1,2480.7,1.3777]
[1747496585587,4.03063338,2481.0,2480.7,1.3777]
[1747496585753,4.03063338,2481.0,2480.7,2.69439074]
[1747496587189,4.03056049,2481.1,2480.7,2.69439074]
[1747496587689,4.03063885,2481.0,2480.7,2.69439074]
[1747496588187,4.03058391,2481.1,2480.7,2.69439074]
[1747496588489,4.03064869,2481.0,2480.7,2.69439074]
[1747496589390,4.03082132,2480.9,2480.7,2.69439074]
[1747496589595,4.03079527,2480.9,2480.7,1.3777]
[1747496592601,4.03079527,2480.9,2480.8,7.759]
[1747496594174,4.03021326,2481.3,2480.9,0.55]
[1747496594378,4.0300606,2481.4,2480.9,4.58070528]
[1747496594696,17.61865611,2481.7,2480.9,0.55]
[1747496594916,4.03060946,2481.1,2480.9,0.55]
[1747496595061,4.03060946,2481.1,2480.9,1.46367]
[1747496595264,4.03035476,2481.2,2480.7,0.8277]
[1747496595489,4.03035476,2481.2,2480.8,7.759]
[1747496595490,4.03062525,2481.1,2480.8,7.759]
[1747496595902,4.03077036,2481.0,2480.8,7.759]
[1747496596102,0.7851,2481.3,2480.8,7.759]
[1747496596403,4.03070782,2481.0,2480.8,7.759]
[1747496597605,0.7851,2481.3,2480.7,1.30824577]
[1747496597905,4.03095766,2480.9,2480.8,7.758]
[1747496599182,4.03056761,2481.1,2480.8,7.758]
[1747496599183,4.03071436,2481.0,2480.8,7.758]
[1747496599414,4.03079527,2480.9,2480.6,0.48054577]
[1747496599588,4.03112024,2480.7,2480.6,0.48054577]
[1747496599923,11.78812024,2480.7,2480.6,0.48054577]
[1747496600679,12.57932024,2480.7,2480.6,0.48054577]
[1747496602285,12.57932024,2480.7,2480.2,7.758]
[1747496602485,21.65487635,2480.7,2480.2,7.758]
[1747496604021,4.03177035,2480.3,2480.2,7.758]
[1747496607222,11.78938956,2480.6,2480.3,0.8195]
[1747496607408,7.758,2480.6,2480.3,0.8195]
[1747496607720,20.86476793,2480.7,2480.3,0.8195]
[1747496607923,4.03129588,2480.6,2480.3,0.8195]
[1747496608218,4.03129588,2480.6,2480.3,1.41684544]
[1747496608720,4.03144723,2480.5,2480.3,1.41684544]
[1747496608899,4.03144723,2480.5,2480.3,0.8195]
[1747496609942,4.03137539,2480.6,2480.3,0.8195]
[1747496612028,4.0314669,2480.5,2480.3,0.8195]
[1747496613637,4.03137482,2480.6,2480.3,0.8195]
[1747496614529,4.03145085,2480.5,2480.3,0.8195]
[1747496615950,4.03137013,2480.6,2480.3,0.8195]
[1747496616101,4.0309109,2480.9,2480.4,0.55]
[1747496616303,4.0306328,2481.0,2480.4,4.58153965]
[1747496616653,4.03096215,2480.8,2480.4,4.58153965]
[1747496616928,4.03096215,2480.8,2480.4,0.55]
[1747496617131,4.03096215,2480.8,2480.5,0.67397186]
[1747496618145,4.03112509,2480.7,2480.5,0.67397186]
[1747496618432,4.0316078,2480.4,2480.3,8.23854577]
[1747496620435,4.0316078,2480.4,2480.3,7.758]
[1747496624043,4.03201923,2480.2,2479.8,0.7988]
[1747496624246,4.03201923,2480.2,2479.9,8.28920833]
[1747496624845,4.03212566,2480.1,2479.9,8.28920833]
[1747496626244,4.03219333,2480.1,2479.9,8.28920833]
[1747496626835,4.03218811,2480.1,2479.9,8.28920833]
[1747496630546,4.03196783,2480.2,2479.9,8.7697541]
[1747496630740,4.03196783,2480.2,2479.9,8.23854577]
[1747496631046,4.03225806,2480.0,2479.9,0.48054577]
[1747496631247,11.78825806,2480.0,2479.9,0.48054577]
[1747496632351,7.756,2480.0,2479.6,2.38158336]
[1747496632513,4.03269962,2479.8,2479.6,2.38158336]
[1747496632915,4.03274589,2479.7,2479.6,2.38158336]
[1747496633115,4.03267778,2479.8,2479.6,2.38158336]
[1747496633626,4.03251428,2479.9,2479.6,2.38158336]
[1747496633843,4.0326658,2479.8,2479.5,0.00470506]
[1747496634012,4.0326658,2479.8,2479.5,8.24908581]
[1747496635157,4.03278311,2479.7,2479.5,8.24908581]
[1747496635519,4.03267754,2479.8,2479.5,8.24908581]
[1747496637028,4.03275267,2479.7,2479.5,8.24908581]
[1747496637228,4.03267381,2479.8,2479.5,8.24908581]
[1747496638043,4.03276791,2479.7,2479.5,8.24908581]
[1747496638454,4.03290853,2479.6,2479.5,0.00470506]
[1747496639733,4.03339652,2479.3,2479.2,0.00470506]
[1747496640054,4.03330543,2479.4,2479.2,0.00470506]
[1747496640259,7.755,2479.5,2479.3,0.7889]
[1747496640414,4.03278239,2479.7,2479.3,0.7889]
[1747496640611,9.07555611,2479.9,2479.3,0.7889]
[1747496640612,13.10804832,2479.9,2479.3,2.04752354]
[1747496640813,9.07555611,2479.9,2479.6,0.7889]
[1747496641017,9.07555611,2479.9,2479.6,8.5479]
[1747496641259,4.03216098,2480.1,2479.7,4.03268841]
[1747496641421,4.03227699,2480.0,2479.6,12.58071661]
[1747496641752,4.03218469,2480.1,2479.6,14.29710445]
[1747496642253,4.03228325,2480.0,2479.6,14.29710445]
[1747496642462,4.03228325,2480.0,2479.6,14.29719444]
[1747496642657,9.07555611,2480.4,2479.7,4.03261786]
[1747496642829,11.786889,2480.3,2479.8,0.7889]
[1747496643024,4.03194281,2480.2,2479.8,2.14500809]
[1747496643418,4.0321321,2480.1,2479.8,2.14500809]
[1747496643756,4.03265118,2479.8,2479.7,7.755]
[1747496643963,4.03236622,2480.0,2479.7,7.755]
[1747496643964,4.03248914,2479.9,2479.7,7.755]
[1747496644751,4.03235264,2480.0,2479.7,7.755]
[1747496644941,4.03217015,2480.1,2479.7,7.755]
[1747496645357,11.78717015,2480.1,2479.7,7.755]
[1747496645769,4.03227929,2480.0,2479.7,7.755]
[1747496647665,4.03227929,2480.0,2479.7,8.66677051]
[1747496649133,9.07555611,2480.4,2480.0,0.7964]
[1747496649134,7.754,2480.3,2480.0,0.7964]
[1747496649338,4.03184725,2480.3,2480.0,0.7964]
[1747496650564,4.03193321,2480.2,2480.0,0.7964]
[1747496651264,4.03184729,2480.3,2480.0,0.7964]
[1747496651765,4.03206225,2480.2,2480.0,0.7964]
[1747496652876,4.03209548,2480.1,2480.0,0.7964]
[1747496653474,4.03202159,2480.2,2480.0,0.7964]
[1747496653773,4.03202159,2480.2,2480.0,1.33429102]
[1747496654144,4.03202159,2480.2,2480.0,0.7964]
[1747496655971,4.0323025,2480.0,2479.8,1.3464]
[1747496656175,4.0323025,2480.0,2479.8,9.1014]
[1747496657441,4.03208479,2480.2,2479.8,9.1014]
[1747496661378,4.03225046,2480.1,2479.8,9.1014]
[1747496661584,4.03225046,2480.1,2479.8,10.5060022]
[1747496663277,4.03225046,2480.1,2479.8,10.5050022]
[1747496665350,7.754,2480.4,2479.8,7.754]
[1747496665351,4.03239942,2480.0,2479.8,7.754]
[1747496665555,4.03242066,2479.9,2479.8,7.754]
[1747496668156,4.03234997,2480.0,2479.8,7.754]
[1747496668356,11.78196169,2480.2,2479.8,7.754]
[1747496668756,4.03196169,2480.2,2479.8,7.754]
[1747496668959,11.78196169,2480.2,2479.8,7.754]
[1747496669158,4.03196169,2480.2,2479.8,7.754]
[1747496669558,4.03214221,2480.1,2479.8,7.754]
[1747496669880,4.03214221,2480.1,2479.8,8.18112022]
[1747496670578,4.03197026,2480.2,2479.8,8.18112022]
[1747496670771,4.03197026,2480.2,2479.9,0.55]
[1747496670973,4.03197026,2480.2,2480.0,0.7894]
[1747496672240,11.78186628,2480.3,2480.0,0.7894]
[1747496672447,11.78086628,2480.3,2480.0,0.7894]
[1747496672981,4.03186628,2480.3,2480.0,0.7894]
[1747496673187,13.10666951,2480.8,2480.1,0.55]
[1747496673188,0.8177,2480.8,2480.1,0.55]
[1747496673360,4.0314312,2480.6,2480.2,0.8097]
[1747496673685,4.03145653,2480.5,2480.2,0.8097]
[1747496673889,4.03145653,2480.5,2480.2,1.4844167]
[1747496674656,4.03189167,2480.3,2480.1,0.55]
[1747496674954,4.03189167,2480.3,2480.0,2.80857805]
[1747496674955,4.03202562,2480.2,2480.0,9.20128456]
[1747496676081,4.03209548,2480.1,2480.0,9.20128456]
[1747496676384,4.03209548,2480.1,2480.0,0.64358456]
[1747496677084,4.03202679,2480.2,2479.9,7.748]
[1747496679388,4.03214567,2480.1,2479.9,7.748]
[1747496679585,4.03202679,2480.2,2479.9,8.298]
[1747496679586,4.03225806,2480.0,2479.9,8.298]
[1747496679796,4.03248015,2479.9,2479.7,0.64358456]
[1747496679997,4.03231858,2480.0,2479.7,0.64358456]
[1747496680181,4.03258327,2479.8,2479.7,0.64358456]
[1747496680368,7.747,2480.1,2479.6,9.19388456]
[1747496680566,7.747,2480.1,2479.6,11.31704745]
[1747496680895,4.03244234,2479.9,2479.6,11.31704745]
[1747496683195,4.03244234,2479.9,2479.6,10.67346289]
[1747496683799,11.77834699,2480.0,2479.6,10.67346289]
[1747496684700,4.03246826,2479.9,2479.6,10.67346289]
[1747496685876,4.03185186,2480.3,2479.8,4.03248734]
[1747496686106,4.0321289,2480.1,2479.7,6.11813278]
[1747496689702,4.03234889,2480.0,2479.6,9.19488456]
[1747496689879,4.03213767,2480.1,2479.6,9.19488456]
[1747496690205,4.03235448,2480.0,2479.6,9.19488456]
[1747496691311,4.03235448,2480.0,2479.6,13.22776618]
[1747496691497,4.03235448,2480.0,2479.6,12.58418162]
[1747496692010,4.03235448,2480.0,2479.6,8.5513]